bitfinex/quotes_BTCUSD_20250330
["timestamp","ask_amount","ask_price","bid_price","bid_amount"]
[1743358704144,0.14224,82804.0,82792.0,77.30484993]
[1743358705221,0.0001685,82793.0,82792.0,77.30484993]
[1743358705579,0.0001685,82793.0,82792.0,77.35204993]
[1743358705785,0.3001685,82793.0,82792.0,77.35204993]
[1743358706792,0.34226335,82793.0,82792.0,77.35204993]
[1743358707093,0.3122465,82793.0,82792.0,77.35204993]
[1743358707477,0.3001685,82793.0,82792.0,77.35204993]
[1743358708103,0.0061685,82793.0,82792.0,77.35204993]
[1743358711273,0.8816085,82793.0,82792.0,77.35204993]
[1743358712038,0.90053862,82793.0,82792.0,77.35204993]
[1743358716931,0.8816085,82793.0,82792.0,77.35204993]
[1743358720768,0.3061685,82793.0,82792.0,77.35204993]
[1743358721974,0.5754,82795.0,82792.0,77.35204993]
[1743358722189,0.5754,82795.0,82793.0,0.00241551]
[1743358722374,0.5754,82795.0,82794.0,0.0472]
[1743358722584,0.14216,82797.0,82794.0,0.0472]
[1743358722814,0.14216,82797.0,82796.0,0.0472]
[1743358723337,0.14216,82797.0,82796.0,0.0412]
[1743358723541,0.13594519,82797.0,82796.0,0.0412]
[1743358723759,0.25064775,82800.0,82796.0,0.3]
[1743358723971,0.25064775,82800.0,82796.0,0.41561354]
[1743358724189,0.25064775,82800.0,82796.0,0.11561354]
[1743358724593,0.14216,82800.0,82796.0,0.11561354]
[1743358724992,0.14216,82800.0,82795.0,0.12028483]
[1743358725400,0.14216,82800.0,82793.0,0.02693372]
[1743358726227,0.14216,82800.0,82794.0,0.0412]
[1743358728108,0.1423285,82800.0,82794.0,0.04361504]
[1743358728441,0.1423285,82800.0,82794.0,0.0412]
[1743358734774,0.1423285,82800.0,82795.0,0.0800774]
[1743358735807,0.1423285,82800.0,82794.0,0.0412]
[1743358737496,0.1423285,82800.0,82793.0,0.00193372]
[1743358739401,0.14212,82799.0,82793.0,0.00193372]
[1743358739939,0.14212,82799.0,82793.0,0.00227072]
[1743358741175,0.14212,82799.0,82793.0,0.02727072]
[1743358741397,0.14212,82799.0,82793.0,0.025337]
[1743358742533,0.14212,82799.0,82793.0,0.266902]
[1743358742891,0.14212,82799.0,82796.0,0.241556]
[1743358743118,0.14212,82799.0,82797.0,0.36425203]
[1743358743317,0.0001685,82800.0,82799.0,0.241548]
[1743358743496,0.1422885,82800.0,82797.0,0.241552]
[1743358744480,0.1422885,82800.0,82799.0,0.241548]
[1743358744882,0.1422885,82800.0,82797.0,0.241552]
[1743358745509,0.1422885,82800.0,82798.0,0.0024151]
[1743358747800,0.1422885,82800.0,82797.0,0.25463006]
[1743358748223,0.1422885,82800.0,82793.0,0.000337]
[1743358748638,0.3,82799.0,82793.0,0.000337]
[1743358748859,0.0809,82798.0,82793.0,0.000337]
[1743358750546,0.0809,82798.0,82793.0,3.36e-05]
[1743358751917,0.14208,82797.0,82793.0,3.36e-05]
[1743358754566,0.15008,82797.0,82793.0,0.0010336]
[1743358756526,0.008,82797.0,82794.0,0.00241542]
[1743358756682,0.14208,82796.0,82794.0,0.00241542]
[1743358756890,0.14208,82796.0,82794.0,0.12270025]
[1743358757285,0.14208,82796.0,82793.0,0.0010336]
[1743358757485,0.14208,82796.0,82793.0,3.36e-05]
[1743358758106,0.14441332,82796.0,82793.0,3.36e-05]
[1743358758317,0.003,82796.0,82793.0,0.00244884]
[1743358758526,0.14208,82795.0,82794.0,0.001]
[1743358758916,0.14208,82795.0,82793.0,3.36e-05]
[1743358759119,0.003,82796.0,82794.0,0.12028483]
[1743358759346,0.15008,82796.0,82795.0,0.00241499]
[1743358759458,0.15008,82796.0,82794.0,0.12028483]
[1743358759664,0.14697507,82796.0,82794.0,0.12028483]
[1743358759868,0.14396217,82796.0,82793.0,0.2425996]
[1743358760504,0.14208,82796.0,82795.0,0.24156]
[1743358760711,0.14208,82796.0,82795.0,0.23356]
[1743358761137,0.14408,82796.0,82795.0,0.23356]
[1743358761615,0.14608,82796.0,82795.0,0.23356]
[1743358761817,0.14808,82796.0,82795.0,0.23356]
[1743358762112,0.14408,82796.0,82795.0,0.23356]
[1743358762342,0.14404,82796.0,82795.0,0.23356]
[1743358762579,0.14404,82796.0,82793.0,0.2415996]
[1743358763588,0.002,82796.0,82793.0,3.36e-05]
[1743358763832,0.1422485,82799.0,82793.0,3.36e-05]
[1743358764509,0.001,82796.0,82793.0,3.36e-05]
[1743358764871,0.0001685,82796.0,82793.0,3.36e-05]
[1743358765976,0.0011685,82796.0,82793.0,3.36e-05]
[1743358767424,0.0011685,82796.0,82794.0,0.241563]
[1743358768052,0.0011685,82796.0,82795.0,0.012078]
[1743358768225,0.0001685,82796.0,82795.0,0.012078]
[1743358768436,0.0001685,82796.0,82794.0,0.266563]
[1743358768753,0.0011685,82796.0,82794.0,0.266563]
[1743358769173,0.0001685,82796.0,82794.0,0.266563]
[1743358771071,0.0011685,82796.0,82794.0,0.266563]
[1743358771482,0.0001685,82796.0,82794.0,0.266563]
[1743358771936,0.0011685,82796.0,82794.0,0.025]
[1743358772145,0.06345855,82795.0,82793.0,3.36e-05]
[1743358772346,0.0491,82795.0,82793.0,3.36e-05]
[1743358774433,0.10862727,82794.0,82793.0,3.36e-05]
[1743358780558,0.19182727,82794.0,82793.0,3.36e-05]
[1743358781498,0.23702727,82794.0,82793.0,3.36e-05]
[1743358783777,0.24002727,82794.0,82793.0,3.36e-05]
[1743358784260,0.1314,82794.0,82793.0,3.36e-05]
[1743358784497,0.1284,82794.0,82793.0,3.36e-05]
[1743358784756,0.1314,82794.0,82793.0,3.36e-05]
[1743358790990,0.15032886,82794.0,82793.0,3.36e-05]
[1743358791395,0.1314,82794.0,82793.0,3.36e-05]
[1743358793178,0.1314,82794.0,82792.0,77.2367626]
[1743358794050,0.1284,82794.0,82792.0,77.2367626]
[1743358794346,0.1314,82794.0,82792.0,77.2367626]
[1743358798655,0.142,82793.0,82792.0,77.2367626]
[1743358800146,0.16092853,82793.0,82792.0,77.2367626]
[1743358800748,0.16392853,82793.0,82792.0,77.2367626]
[1743358801167,0.142,82793.0,82792.0,77.2367626]
[1743358801493,0.142,82793.0,82792.0,77.35704743]
[1743358802462,0.142,82793.0,82792.0,77.2367626]
[1743358810879,0.2185,82793.0,82792.0,77.2367626]
[1743358811097,0.2648,82793.0,82792.0,77.2367626]
[1743358814272,0.1883,82793.0,82792.0,77.2367626]
[1743358817167,0.142,82793.0,82792.0,77.2367626]
[1743358820481,0.14196,82793.0,82792.0,77.27640697]
[1743358821534,0.14196,82793.0,82792.0,77.2367626]
[1743358822244,0.14196,82794.0,82792.0,77.2367626]
[1743358827707,0.14196,82794.0,82793.0,0.00241528]
[1743358829498,0.50603169,82805.0,82793.0,0.24397928]
[1743358829698,0.14192,82804.0,82794.0,0.12028483]
[1743358829905,0.14192,82804.0,82792.0,77.2367626]
[1743358832279,0.50603169,82805.0,82792.0,77.2367626]
[1743358833355,0.14192,82806.0,82795.0,0.012078]
[1743358833791,0.14192,82806.0,82793.0,0.241566]
[1743358834462,0.14192,82806.0,82794.0,0.012078]
[1743358834866,0.14192,82806.0,82793.0,0.266566]
[1743358835769,0.14192,82806.0,82793.0,0.025]
[1743358836150,0.14192,82806.0,82794.0,0.000337]
[1743358836352,0.1420885,82806.0,82794.0,0.000337]
[1743358843246,0.10879873,82801.0,82794.0,0.000337]
[1743358847135,0.10879873,82800.0,82794.0,0.000337]
[1743358852675,0.03614085,82806.0,82794.0,0.000337]
[1743358853373,0.03614085,82806.0,82794.0,0.06965283]
[1743358854134,0.0001685,82806.0,82794.0,0.06965283]
[1743358854332,0.0001685,82806.0,82794.0,0.000337]
[1743358855786,0.0001685,82806.0,82794.0,0.025337]
[1743358856789,0.0001685,82806.0,82794.0,0.278975]
[1743358857013,0.0001685,82806.0,82796.0,0.241556]
[1743358858447,0.0001685,82806.0,82798.0,0.241551]
[1743358859835,0.0001685,82806.0,82797.0,0.012077]
[1743358860247,0.0001685,82806.0,82796.0,0.253633]
[1743358860438,0.0001685,82806.0,82795.0,0.025]
[1743358861040,0.06485961,82811.0,82795.0,0.025]
[1743358861578,0.06485961,82811.0,82795.0,0.26656]
[1743358861784,0.06485961,82811.0,82796.0,0.08320562]
[1743358862828,0.06485961,82811.0,82795.0,0.26656]
[1743358863931,0.06485961,82811.0,82795.0,0.025]
[1743358864136,0.1316,82810.0,82795.0,0.025]
[1743358864348,0.0832,82809.0,82796.0,0.00241501]
[1743358864480,0.0832,82809.0,82795.0,0.025]
[1743358867872,0.14184,82808.0,82795.0,0.025]
[1743358869208,0.25066734,82808.0,82795.0,0.025]
[1743358870889,0.0766,82806.0,82795.0,0.025]
[1743358871438,0.0766,82806.0,82795.0,0.025337]
[1743358872467,0.1418,82805.0,82795.0,0.025337]
[1743358876100,0.3,82804.0,82795.0,0.000337]
[1743358876277,0.0766,82800.0,82795.0,0.000337]
[1743358876492,0.0766,82798.0,82795.0,0.000337]
[1743358876923,0.0766,82798.0,82792.0,77.16931843]
[1743358883974,0.69128485,82793.0,82792.0,77.16931843]
[1743358884555,1.16360785,82793.0,82792.0,77.16931843]
[1743358885629,1.08551785,82793.0,82792.0,77.16931843]
[1743358886328,1.15835536,82793.0,82792.0,77.16931843]
[1743358887254,1.15835536,82793.0,82792.0,77.10117889]
[1743358887465,1.16835536,82793.0,82792.0,76.96489927]
[1743358887685,1.16335536,82793.0,82792.0,76.88161684]
[1743358887877,1.15835536,82793.0,82792.0,76.88161684]
[1743358888085,1.16335536,82793.0,82792.0,76.88161684]
[1743358888301,1.16835536,82793.0,82792.0,76.88161684]
[1743358890251,1.16335536,82793.0,82792.0,76.88161684]
[1743358890451,1.16835536,82793.0,82792.0,76.88161684]
[1743358890724,1.16335536,82793.0,82792.0,76.88161684]
[1743358890894,1.18228933,82793.0,82792.0,76.88161684]
[1743358891061,1.18728933,82793.0,82792.0,76.88161684]
[1743358891263,1.16835536,82793.0,82792.0,76.88161684]
[1743358891895,0.95290743,82793.0,82792.0,76.88161684]
[1743358893139,0.91591583,82793.0,82792.0,76.88161684]
[1743358893340,0.95290743,82793.0,82792.0,76.88161684]
[1743358893633,0.96498543,82793.0,82792.0,76.88161684]
[1743358894982,1.09188543,82793.0,82792.0,76.88161684]
[1743358895899,1.09188543,82793.0,82792.0,76.6416586]
[1743358897186,1.09205393,82793.0,82792.0,76.6416586]
[1743358898010,1.01921642,82793.0,82792.0,76.6416586]
[1743358898313,1.05555442,82793.0,82792.0,76.6416586]
[1743358898829,1.19735442,82793.0,82792.0,76.6416586]
[1743358899608,1.46315012,82793.0,82792.0,76.6416586]
[1743358899798,1.05437627,82793.0,82792.0,76.6416586]
[1743358900010,0.7225302,82793.0,82792.0,76.6416586]
[1743358900212,1.0077462,82793.0,82792.0,76.6416586]
[1743358900336,1.02228705,82793.0,82792.0,76.6416586]
[1743358900740,1.0077462,82793.0,82792.0,76.6416586]
[1743358901361,0.4541022,82793.0,82792.0,76.6416586]
[1743358901789,0.7541022,82793.0,82792.0,76.6416586]
[1743358901999,0.3123022,82793.0,82792.0,76.6416586]
[1743358902197,0.2759642,82793.0,82792.0,76.6913586]
[1743358902478,0.2759642,82793.0,82792.0,76.7827366]
[1743358902667,0.2709642,82793.0,82792.0,76.7827366]
[1743358902866,0.2759642,82793.0,82792.0,76.7827366]
[1743358903009,0.2709642,82793.0,82792.0,76.7827366]
[1743358903210,0.2759642,82793.0,82792.0,76.7827366]
[1743358903840,0.2709642,82793.0,82792.0,76.7827366]
[1743358904047,0.2749642,82793.0,82792.0,76.7827366]
[1743358904254,0.2699642,82793.0,82792.0,76.7827366]
[1743358904633,0.2749642,82793.0,82792.0,76.7827366]
[1743358904840,0.2749642,82793.0,82792.0,76.7706586]
[1743358905599,0.2699642,82793.0,82792.0,76.7706586]
[1743358905938,0.2719642,82793.0,82792.0,76.7827366]
[1743358906311,0.2719642,82793.0,82792.0,76.90302143]
[1743358906460,0.2719642,82793.0,82792.0,76.93302143]
[1743358907676,0.2719642,82793.0,82792.0,76.8127366]
[1743358908613,0.2699642,82793.0,82792.0,76.8127366]
[1743358908975,0.2709642,82793.0,82792.0,76.8127366]
[1743358909207,0.2669642,82793.0,82792.0,76.8127366]
[1743358909594,0.2699642,82793.0,82792.0,76.8127366]
[1743358910244,0.2699642,82793.0,82792.0,76.93302143]
[1743358912947,0.2699642,82793.0,82792.0,77.49404143]
[1743358913691,0.2669642,82793.0,82792.0,77.92154143]
[1743358914254,0.2659642,82793.0,82792.0,77.92254143]
[1743358914555,0.2659642,82793.0,82792.0,77.92154143]
[1743358915005,0.2659642,82793.0,82792.0,77.92354143]
[1743358915155,0.2659642,82793.0,82792.0,78.04382626]
[1743358915358,0.2659642,82793.0,82792.0,78.04182626]
[1743358915557,0.2659642,82793.0,82792.0,78.04482626]
[1743358915957,0.2659642,82793.0,82792.0,78.04782626]
[1743358916359,0.2659642,82793.0,82792.0,77.90610626]
[1743358916661,0.2659642,82793.0,82792.0,77.92754143]
[1743358917048,0.0001685,82793.0,82792.0,77.92754143]
[1743358920125,0.0001685,82793.0,82792.0,77.94208228]
[1743358920935,5e-07,82793.0,82792.0,77.94208228]
[1743358921851,5e-07,82793.0,82792.0,77.93908228]
[1743358922055,5e-07,82793.0,82792.0,78.05636711]
[1743358922252,0.0001685,82805.0,82804.0,0.25361]
[1743358922475,0.0001685,82805.0,82804.0,0.65779483]
[1743358922884,0.0001685,82805.0,82804.0,1.09163568]
[1743358923096,0.0001685,82805.0,82804.0,1.51192051]
[1743358923661,0.0001685,82805.0,82804.0,1.38442051]
[1743358923865,0.0001685,82805.0,82804.0,1.38842051]
[1743358925912,0.0001685,82805.0,82804.0,1.38742051]
[1743358926313,5e-07,82805.0,82804.0,1.38842051]
[1743358926652,5e-07,82811.0,82810.0,0.583591]
[1743358926862,5e-07,82811.0,82810.0,1.49198504]
[1743358927259,0.0001685,82848.0,82845.0,0.01207]
[1743358927421,0.0001685,82848.0,82843.0,0.278489]
[1743358927790,0.01153584,82847.0,82843.0,0.037071]
[1743358928124,0.0001685,82848.0,82846.0,0.241409]
[1743358928567,0.00021545,82848.0,82846.0,0.241409]
[1743358928739,0.00421545,82848.0,82845.0,0.241414]
[1743358928942,0.00421545,82848.0,82847.0,0.241408]
[1743358929348,0.00421545,82848.0,82847.0,0.253478]
[1743358929611,0.00521545,82848.0,82847.0,0.253478]
[1743358929932,0.00521545,82848.0,82847.0,0.27805586]
[1743358930152,0.00421545,82848.0,82847.0,0.30305586]
[1743358930361,0.00421545,82848.0,82847.0,0.30805586]
[1743358930362,0.00521545,82848.0,82847.0,0.30805586]
[1743358930561,0.00121545,82848.0,82847.0,0.85175536]
[1743358930841,0.00121545,82848.0,82847.0,0.97204019]
[1743358931002,0.00121545,82848.0,82847.0,1.27204019]
[1743358931405,0.00121545,82848.0,82847.0,1.28658104]
[1743358931895,4.5e-07,82848.0,82847.0,1.28658104]
[1743358932100,9.5e-07,82850.0,82849.0,0.48201085]
[1743358932225,0.0004708,82850.0,82849.0,0.69800265]
[1743358932421,0.0001682,82864.0,82863.0,0.40883]
[1743358932683,0.0001682,82864.0,82863.0,1.40939518]
[1743358933548,0.0001685,82888.0,82886.0,0.03]
[1743358933771,0.0001685,82888.0,82886.0,1.35017532]
[1743358933772,0.00027057,82887.0,82886.0,1.35017532]
[1743358933973,0.01003531,82887.0,82886.0,1.46804816]
[1743358934131,0.00027057,82887.0,82886.0,1.46804816]
[1743358934574,0.00027057,82887.0,82886.0,1.06296916]
[1743358934778,0.00027057,82887.0,82886.0,0.4242995]
[1743358935207,0.00127057,82887.0,82886.0,0.4492995]
[1743358935382,0.00127057,82887.0,82886.0,0.4242995]
[1743358935596,0.00127057,82887.0,82886.0,0.4492995]
[1743358935802,0.00027057,82887.0,82886.0,0.4442995]
[1743358936363,0.00027057,82887.0,82886.0,0.4482995]
[1743358936821,0.00027057,82887.0,82886.0,0.4442995]
[1743358937029,0.00027057,82887.0,82886.0,0.48972945]
[1743358937254,0.00027057,82887.0,82886.0,0.4452995]
[1743358937482,0.00027057,82887.0,82886.0,0.4202995]
[1743358937709,0.00027057,82887.0,82886.0,0.001]
[1743358937935,0.00996283,82887.0,82886.0,0.026]
[1743358938652,0.00996283,82887.0,82886.0,0.001]
[1743358938858,0.02402683,82887.0,82886.0,0.001]
[1743358939061,0.24131,82881.0,82867.0,0.00241278]
[1743358939259,0.24131,82881.0,82863.0,0.005]
[1743358939538,0.00971732,82880.0,82863.0,0.005]
[1743358939922,0.241301,82884.0,82863.0,0.005]
[1743358940127,0.00972047,82879.0,82878.0,0.025]
[1743358940331,0.12697057,82887.0,82878.0,0.025]
[1743358940665,0.12697057,82887.0,82879.0,0.025]
[1743358941097,0.12497057,82887.0,82879.0,0.025]
[1743358941464,0.002,82881.0,82879.0,0.025]
[1743358941865,0.12497057,82887.0,82879.0,0.025]
[1743358942105,0.12497057,82887.0,82866.0,0.46172945]
[1743358942252,0.12697057,82887.0,82866.0,0.46172945]
[1743358942629,0.12697057,82887.0,82867.0,0.09856545]
[1743358942838,0.12697057,82887.0,82877.0,0.025]
[1743358943263,0.12697057,82887.0,82875.0,0.025]
[1743358943482,0.12697057,82887.0,82867.0,0.09856545]
[1743358943813,0.12697057,82887.0,82866.0,0.46172945]
[1743358943987,0.12497057,82887.0,82866.0,0.46172945]
[1743358944391,0.12697057,82887.0,82875.0,0.0003366]
[1743358945526,0.12497057,82887.0,82875.0,0.0003366]
[1743358945666,0.12697057,82887.0,82875.0,0.0003366]
[1743358945879,0.012065,82882.0,82875.0,0.0003366]
[1743358946087,0.15467733,82887.0,82875.0,0.0003366]
[1743358946708,0.12697057,82887.0,82875.0,0.0003366]
[1743358947135,0.12497057,82887.0,82875.0,0.0003366]
[1743358947333,0.004,82882.0,82875.0,0.0003366]
[1743358947938,0.12497057,82887.0,82875.0,0.0003366]
[1743358948182,0.13097057,82887.0,82875.0,0.0003366]
[1743358948790,0.12497057,82887.0,82876.0,0.00241295]
[1743358949287,0.004,82882.0,82876.0,0.00241295]
[1743358949520,0.006,82882.0,82877.0,0.00241285]
[1743358949757,0.004,82882.0,82877.0,0.00241285]
[1743358950000,0.00983459,82881.0,82877.0,0.00241285]
[1743358950245,0.00983459,82881.0,82880.0,0.012065]
[1743358950497,0.00983459,82881.0,82880.0,0.253377]
[1743358950741,0.00327057,82887.0,82886.0,0.251359]
[1743358950950,0.00027057,82887.0,82886.0,0.281359]
[1743358951363,0.00527057,82887.0,82886.0,0.44974383]
[1743358951564,0.00527057,82887.0,82886.0,0.57002866]
[1743358951739,0.00027057,82887.0,82886.0,0.44974383]
[1743358952132,0.00327057,82887.0,82886.0,0.44774383]
[1743358952743,0.00327057,82887.0,82886.0,0.278359]
[1743358953097,0.00327057,82887.0,82886.0,0.279359]
[1743358953244,0.00327057,82887.0,82886.0,0.283359]
[1743358953443,0.00027057,82887.0,82886.0,0.283359]
[1743358953689,0.00027057,82887.0,82886.0,0.285359]
[1743358953815,0.00027057,82887.0,82886.0,0.40564383]
[1743358954235,0.00027057,82887.0,82886.0,0.40364383]
[1743358954437,0.00027057,82887.0,82886.0,0.40664383]
[1743358954660,0.00027057,82887.0,82886.0,0.286359]
[1743358955106,0.00027057,82887.0,82886.0,0.7056585]
[1743358955308,0.00027057,82887.0,82886.0,0.7026585]
[1743358955784,0.00027057,82887.0,82886.0,0.71185501]
[1743358956384,0.00027057,82887.0,82886.0,0.71219161]
[1743358956569,0.00027057,82887.0,82886.0,0.83547644]
[1743358956968,0.00027057,82887.0,82886.0,0.83247644]
[1743358957201,0.00027057,82887.0,82886.0,0.83547644]
[1743358961776,0.00027057,82887.0,82886.0,1.25576127]
[1743358962599,0.00027057,82887.0,82886.0,1.26330212]
[1743358962994,0.00027057,82887.0,82886.0,1.27330212]
[1743358963611,0.00027057,82887.0,82886.0,1.40080212]
[1743358963807,0.00027057,82887.0,82886.0,1.48180212]
[1743358965700,0.00027057,82887.0,82886.0,1.52790212]
[1743358965887,5.7e-07,82889.0,82888.0,0.469564]
[1743358966096,5.7e-07,82889.0,82888.0,0.66053775]
[1743358966294,0.1,82900.0,82898.0,0.710823]
[1743358966508,0.1,82900.0,82898.0,1.00220868]
[1743358967127,0.1,82900.0,82898.0,1.08320868]
[1743358967377,0.1,82900.0,82898.0,2.18680761]
[1743358967584,0.1,82900.0,82898.0,2.28251458]
[1743358967782,0.1,82900.0,82898.0,2.28451458]
[1743358968183,0.1,82900.0,82898.0,2.12795458]
[1743358968382,0.1,82900.0,82898.0,2.28455458]
[1743358968596,0.1,82900.0,82898.0,1.96880676]
[1743358968803,0.1,82900.0,82898.0,1.96580676]
[1743358968942,0.1,82900.0,82898.0,2.10784761]
[1743358969140,0.1,82900.0,82898.0,2.11084761]
[1743358969621,0.1,82900.0,82898.0,2.11184761]
[1743358969874,0.1,82900.0,82898.0,2.23213244]
[1743358970033,0.1,82900.0,82898.0,2.23113244]
[1743358971067,0.1,82900.0,82898.0,2.23513244]
[1743358971673,0.1,82900.0,82898.0,1.97280676]
[1743358972606,0.1,82900.0,82898.0,1.81620676]
[1743358972818,0.1,82900.0,82898.0,1.14409741]
[1743358973009,0.1,82900.0,82898.0,1.11909741]
[1743358973243,0.1,82900.0,82898.0,1.02381258]
[1743358973972,0.1,82900.0,82898.0,0.99881258]
[1743358974307,0.1,82900.0,82898.0,1.02381258]
[1743358974487,0.1,82900.0,82898.0,1.05805144]
[1743358979570,0.0041685,82899.0,82898.0,1.05805144]
[1743358983053,0.0041685,82899.0,82898.0,1.02381258]
[1743358983259,0.0041685,82899.0,82898.0,0.99881258]
[1743358984405,0.0041685,82899.0,82898.0,0.99381258]
[1743358984746,0.0041685,82899.0,82898.0,0.99781258]
[1743358985376,0.0041685,82899.0,82898.0,0.99381258]
[1743358986096,0.0041685,82899.0,82898.0,0.99581258]
[1743358987566,0.0842685,82899.0,82898.0,0.46236193]
[1743358987731,0.0842685,82899.0,82898.0,0.46736193]
[1743358987732,0.0041685,82899.0,82898.0,0.46736193]
[1743358988527,0.0041685,82899.0,82898.0,0.46136193]
[1743358988758,0.0041685,82899.0,82898.0,0.46436193]
[1743358988962,0.0041685,82899.0,82898.0,0.46536193]
[1743358991505,0.0041685,82899.0,82898.0,0.44036193]
[1743358991713,0.0041685,82899.0,82898.0,0.46536193]
[1743358993563,0.0041685,82899.0,82898.0,0.46036193]
[1743358993747,0.0041685,82899.0,82898.0,0.43536193]
[1743358994132,0.0041685,82899.0,82898.0,0.46536193]
[1743358994463,0.0041685,82899.0,82898.0,0.43536193]
[1743358994668,0.0041685,82899.0,82898.0,0.46536193]
[1743358995841,0.0041685,82899.0,82898.0,0.44036193]
[1743358996158,0.0041685,82899.0,82898.0,0.43536193]
[1743358996572,0.0041685,82899.0,82898.0,0.42329893]
[1743358996777,0.0041685,82899.0,82898.0,0.004]
[1743358997001,0.01255936,82899.0,82898.0,0.004]
[1743358997571,0.0041685,82899.0,82898.0,0.001]
[1743358997895,0.0041685,82899.0,82898.0,0.003]
[1743358998102,0.01255936,82899.0,82898.0,0.003]
[1743358998772,0.01255936,82899.0,82898.0,0.002]
[1743359000723,0.01255936,82899.0,82898.0,0.09975364]
[1743359000931,0.0041685,82899.0,82898.0,0.09975364]
[1743359001077,0.0041685,82899.0,82898.0,0.044063]
[1743359001510,0.0041685,82899.0,82898.0,1.04145905]
[1743359001723,0.0041685,82899.0,82898.0,1.11724676]
[1743359001930,0.0041685,82899.0,82898.0,1.13178761]
[1743359002058,0.0041685,82899.0,82898.0,1.37957244]
[1743359003081,0.0041685,82899.0,82898.0,1.38257244]
[1743359003661,0.0041685,82899.0,82898.0,1.25507244]
[1743359004481,5e-07,82900.0,82899.0,0.328419]
[1743359004681,5e-07,82900.0,82899.0,0.44870383]
[1743359004906,5e-07,82900.0,82899.0,0.56898866]
[1743359005597,5e-07,82900.0,82899.0,0.57298866]
[1743359006863,5e-07,82900.0,82899.0,0.57798866]
[1743359007853,5e-07,82900.0,82899.0,2.12362844]
[1743359008649,5e-07,82900.0,82899.0,1.99612844]
[1743359011066,5e-07,82900.0,82899.0,2.15024844]
[1743359013473,5e-07,82909.0,82899.0,2.27774844]
[1743359013644,3e-07,82920.0,82919.0,0.64359885]
[1743359013851,1.8e-07,82920.0,82919.0,1.41540211]
[1743359014835,1.8e-07,82920.0,82919.0,1.42040211]
[1743359015911,1.8e-07,82920.0,82919.0,1.42340211]
[1743359016241,1.8e-07,82920.0,82919.0,1.54368694]
[1743359017141,1.8e-07,82920.0,82919.0,1.38976694]
[1743359017370,1.8e-07,82920.0,82919.0,1.29890211]
[1743359018709,1.8e-07,82920.0,82919.0,1.42640211]
[1743359019525,1.8e-07,82920.0,82919.0,1.3112713]
[1743359019934,1.8e-07,82920.0,82919.0,1.3111913]
[1743359020152,1.8e-07,82920.0,82919.0,1.43147613]
[1743359021078,1.8e-07,82920.0,82919.0,1.44034924]
[1743359021313,1.8e-07,82920.0,82919.0,1.03175873]
[1743359022347,1.8e-07,82920.0,82919.0,1.02875873]
[1743359022650,1.8e-07,82920.0,82919.0,1.03075873]
[1743359023220,1.8e-07,82920.0,82919.0,1.02575873]
[1743359023679,1.8e-07,82920.0,82919.0,1.02975873]
[1743359023919,1.8e-07,82920.0,82919.0,1.15004356]
[1743359024562,1.8e-07,82920.0,82919.0,1.14804356]
[1743359025003,1.8e-07,82920.0,82919.0,1.15004356]
[1743359026803,0.00016868,82920.0,82919.0,1.15004356]
[1743359027341,0.00016868,82920.0,82919.0,1.30380356]
[1743359027598,0.00016868,82920.0,82919.0,1.43862924]
[1743359028289,0.00016868,82920.0,82919.0,1.43662924]
[1743359028799,0.00016868,82920.0,82919.0,1.43962924]
[1743359029534,0.00016868,82920.0,82919.0,1.43562924]
[1743359029777,0.00016868,82920.0,82919.0,1.44062924]
[1743359030528,0.3,82957.0,82952.0,0.241102]
[1743359030776,0.5529268,82958.0,82951.0,0.012055]
[1743359030777,0.00156977,82954.0,82951.0,0.012055]
[1743359031030,0.00691696,82953.0,82951.0,0.253159]
[1743359031286,0.00691696,82953.0,82947.0,0.025]
[1743359031532,0.02093364,82954.0,82947.0,0.025]
[1743359031768,0.02093364,82954.0,82947.0,0.266115]
[1743359032242,0.02093364,82954.0,82947.0,0.30851435]
[1743359032476,0.02093364,82954.0,82947.0,0.32056935]
[1743359032732,0.02093364,82954.0,82947.0,0.025]
[1743359033242,0.00692952,82953.0,82952.0,0.012055]
[1743359033419,0.00203947,82954.0,82951.0,0.241104]
[1743359033662,0.00203947,82954.0,82949.0,0.025]
[1743359033663,0.1251,82953.0,82949.0,0.025]
[1743359034155,0.00692639,82952.0,82949.0,0.025]
[1743359034553,0.00692639,82952.0,82950.0,0.241109]
[1743359035259,0.1251,82953.0,82950.0,0.241109]
[1743359035260,0.06449036,82965.0,82950.0,0.241109]
[1743359035481,0.00576885,82951.0,82950.0,0.266109]
[1743359035623,0.00014079,82965.0,82950.0,0.266109]
[1743359035826,0.00014079,82965.0,82950.0,0.025]
[1743359037148,0.00014079,82965.0,82942.0,0.025]
[1743359037496,0.00014079,82965.0,82943.0,0.025]
[1743359037497,0.00580129,82964.0,82943.0,0.025]
[1743359037669,0.06234802,82964.0,82943.0,0.025]
[1743359037951,0.06234802,82964.0,82944.0,0.025]
[1743359038117,0.06234802,82964.0,82946.0,0.025]
[1743359038330,0.0791,82962.0,82946.0,0.266118]
[1743359038526,0.0791,82960.0,82946.0,0.266118]
[1743359039069,0.0791,82958.0,82946.0,0.266118]
[1743359039271,0.0790636,82957.0,82941.0,0.025]
[1743359039479,0.0791,82956.0,82942.0,0.025]
[1743359039680,0.0791,82956.0,82941.0,0.253189]
[1743359039903,0.0058086,82955.0,82941.0,0.253189]
[1743359040520,0.0058086,82955.0,82941.0,0.241133]
[1743359040751,0.0058086,82955.0,82942.0,0.025]
[1743359040947,0.0058086,82955.0,82941.0,0.241133]
[1743359041472,0.0058086,82955.0,82941.0,0.266133]
[1743359042386,0.0058086,82955.0,82947.0,0.241117]
[1743359042553,0.0058086,82955.0,82946.0,0.025]
[1743359042964,0.0058086,82955.0,82945.0,0.025]
[1743359043168,0.0791,82954.0,82939.0,0.241139]
[1743359043363,0.00581802,82953.0,82939.0,0.241139]
[1743359043713,0.0791,82954.0,82942.0,0.025]
[1743359043929,0.0791,82954.0,82931.0,0.241162]
[1743359044149,0.0791,82952.0,82936.0,0.012057]
[1743359044320,0.0791,82950.0,82932.0,0.012058]
[1743359045305,0.0791,82950.0,82931.0,0.241163]
[1743359045306,0.0791,82950.0,82931.0,0.253221]
[1743359045540,0.00584,82949.0,82930.0,0.012058]
[1743359045956,0.00584,82949.0,82930.0,0.253224]
[1743359046370,0.012055,82947.0,82924.0,0.012059]
[1743359046605,0.08496512,82946.0,82927.0,0.012058]
[1743359046806,0.23514,82945.0,82927.0,0.012058]
[1743359047178,0.0058557,82944.0,82927.0,0.012058]
[1743359047377,0.0271885,82943.0,82927.0,0.012058]
[1743359047728,0.129,82942.0,82929.0,0.012058]
[1743359047931,0.1348557,82942.0,82929.0,0.012058]